[Event "Titled Tuesday Blitz October 31 Early 2023"]
[White "Mesa Cruz, Juan Carlos"]
[Black "Tarnowska, Aleksandra"]
[WhiteFideId "6423400"]
[BlackFideId "1180967"]
[WhiteElo "2320"]
[BlackElo "2150"]
[Result "0-1"]
[Round "6"]
[TimeControl "180+1"]
[Date "2023.10.31"]
[WhiteClock "0:00:00"]
[BlackClock "0:00:09"]
[Board "148"]

1. e4 {[%clk 0:02:57]}  c5 {[%clk 0:03:00]} 2. Nf3 {[%clk 0:02:46]}  e6 {[%clk 0:03:00]} 3. g3 {[%clk 0:02:45]}  d6 {[%clk 0:02:58]} 4. Bg2 {[%clk 0:02:33]}  Nc6 {[%clk 0:02:57]} 5. O-O {[%clk 0:02:28]}  Nf6 {[%clk 0:02:54]} 6. Re1 {[%clk 0:02:25]}  Be7 {[%clk 0:02:50]} 7. c3 {[%clk 0:02:20]}  d5 {[%clk 0:02:38]} 8. e5 {[%clk 0:02:13]}  Nd7 {[%clk 0:02:37]} 9. d4 {[%clk 0:02:13]}  Qb6 {[%clk 0:02:24]} 10. h4 {[%clk 0:01:47]}  O-O {[%clk 0:02:05]} 11. h5 {[%clk 0:01:37]}  cxd4 {[%clk 0:01:57]} 12. cxd4 {[%clk 0:01:28]}  Re8 {[%clk 0:01:33]} 13. Nc3 {[%clk 0:01:20]}  Qa5 {[%clk 0:01:21]} 14. a3 {[%clk 0:01:15]}  b5 {[%clk 0:01:20]} 15. Bd2 {[%clk 0:01:05]}  Qb6 {[%clk 0:01:17]} 16. Ne2 {[%clk 0:01:03]}  a5 {[%clk 0:01:15]} 17. Rc1 {[%clk 0:00:52]}  Ba6 {[%clk 0:01:11]} 18. Bg5 {[%clk 0:00:47]}  b4 {[%clk 0:01:00]} 19. a4 {[%clk 0:00:42]}  Bxg5 {[%clk 0:00:23]} 20. Nxg5 {[%clk 0:00:24]}  Bxe2 {[%clk 0:00:20]} 21. Rxe2 {[%clk 0:00:23]}  Nxd4 {[%clk 0:00:21]} 22. Rd2 {[%clk 0:00:24]}  Nf5 {[%clk 0:00:19]} 23. g4 {[%clk 0:00:21]}  Nh6 {[%clk 0:00:14]} 24. Qc2 {[%clk 0:00:07]}  Nf8 {[%clk 0:00:14]} 25. Qd3 {[%clk 0:00:02]}  Rac8 {[%clk 0:00:12]} 26. Rdc2 {[%clk 0:00:03]}  Rxc2 {[%clk 0:00:12]} 27. Rxc2 {[%clk 0:00:03]}  Nxg4 {[%clk 0:00:12]} 28. Qf3 {[%clk 0:00:04]}  Nxe5 {[%clk 0:00:10]} 29. Qf4 {[%clk 0:00:04]}  Qb8 {[%clk 0:00:10]} 30. Qe3 {[%clk 0:00:01]}  h6 {[%clk 0:00:09]} 31. Nh3 {[%clk 0:00:00]}  Ng4 {[%clk 0:00:09]} 0-1


[Site "https://www.chess.com"]

[Event "Titled Tuesday Blitz October 31 Early 2023"]
[White "Der_Balak_3Halak"]
[Black "Guevara Sanchez, Erick Marvin"]
[BlackFideId "6700136"]
[WhiteElo "2315"]
[BlackElo "2126"]
[Result "0-1"]
[Round "6"]
[TimeControl "180+1"]
[Date "2023.10.31"]
[WhiteClock "0:00:18"]
[BlackClock "0:00:05"]
[Board "150"]

1. d4 {[%clk 0:03:00]}  Nf6 {[%clk 0:02:58]} 2. c4 {[%clk 0:03:00]}  e6 {[%clk 0:02:58]} 3. Nf3 {[%clk 0:03:00]}  Bb4+ {[%clk 0:02:59]} 4. Bd2 {[%clk 0:02:59]}  Qe7 {[%clk 0:02:56]} 5. c5 {[%clk 0:02:53]}  Bxd2+ {[%clk 0:02:54]} 6. Qxd2 {[%clk 0:02:54]}  d5 {[%clk 0:02:51]} 7. b4 {[%clk 0:02:50]}  c6 {[%clk 0:02:50]} 8. Nc3 {[%clk 0:02:50]}  Bd7 {[%clk 0:02:48]} 9. e3 {[%clk 0:02:50]}  O-O {[%clk 0:02:46]} 10. Bd3 {[%clk 0:02:49]}  Na6 {[%clk 0:02:44]} 11. Rb1 {[%clk 0:02:40]}  Nc7 {[%clk 0:02:42]} 12. a4 {[%clk 0:02:40]}  a6 {[%clk 0:02:42]} 13. O-O {[%clk 0:02:37]}  h6 {[%clk 0:02:35]} 14. Ne5 {[%clk 0:02:24]}  Be8 {[%clk 0:02:26]} 15. Rb2 {[%clk 0:02:17]}  Nd7 {[%clk 0:02:24]} 16. Nf3 {[%clk 0:02:13]}  e5 {[%clk 0:02:23]} 17. Rfb1 {[%clk 0:02:10]}  e4 {[%clk 0:02:23]} 18. Be2 {[%clk 0:02:01]}  exf3 {[%clk 0:02:20]} 19. gxf3 {[%clk 0:02:02]}  Qg5+ {[%clk 0:02:18]} 20. Kh1 {[%clk 0:01:49]}  Nf6 {[%clk 0:02:10]} 21. Rg1 {[%clk 0:01:49]}  Qh4 {[%clk 0:02:06]} 22. Bd3 {[%clk 0:01:32]}  Bd7 {[%clk 0:02:03]} 23. f4 {[%clk 0:01:31]}  Ng4 {[%clk 0:02:00]} 24. f3 {[%clk 0:01:29]}  Nf6 {[%clk 0:01:59]} 25. Qg2 {[%clk 0:01:29]}  Nh5 {[%clk 0:01:54]} 26. Nd1 {[%clk 0:01:11]}  Bh3 {[%clk 0:01:52]} 27. Qe2 {[%clk 0:01:06]}  Ne6 {[%clk 0:01:48]} 28. Nf2 {[%clk 0:01:05]}  Rae8 {[%clk 0:01:41]} 29. Ng4 {[%clk 0:01:01]}  Bxg4 {[%clk 0:01:35]} 30. Rxg4 {[%clk 0:00:47]}  Qh3 {[%clk 0:01:34]} 31. Qf2 {[%clk 0:00:42]}  f5 {[%clk 0:01:09]} 32. Rg6 {[%clk 0:00:39]}  Nhxf4 {[%clk 0:01:04]} 33. Bf1 {[%clk 0:00:36]}  Qh5 {[%clk 0:00:45]} 34. Rg3 {[%clk 0:00:29]}  Ng6 {[%clk 0:00:43]} 35. f4 {[%clk 0:00:26]}  Ne7 {[%clk 0:00:24]} 36. Qg2 {[%clk 0:00:20]}  Qf7 {[%clk 0:00:20]} 37. Be2 {[%clk 0:00:19]}  Kh8 {[%clk 0:00:19]} 38. Rb1 {[%clk 0:00:18]}  Ng8 {[%clk 0:00:17]} 39. b5 {[%clk 0:00:19]}  axb5 {[%clk 0:00:15]} 40. axb5 {[%clk 0:00:19]}  Nf6 {[%clk 0:00:16]} 41. bxc6 {[%clk 0:00:18]}  bxc6 {[%clk 0:00:16]} 42. Rg1 {[%clk 0:00:18]}  Ne4 {[%clk 0:00:14]} 43. Rg6 {[%clk 0:00:18]}  Re7 {[%clk 0:00:10]} 44. Bh5 {[%clk 0:00:19]}  Qg8 {[%clk 0:00:08]} 45. Qa2 {[%clk 0:00:19]}  Nc3 {[%clk 0:00:05]} 46. Qa6 {[%clk 0:00:18]}  Ne4 {[%clk 0:00:05]} 47. Rxh6+ {[%clk 0:00:17]}  gxh6 {[%clk 0:00:05]} 48. Rxg8+ {[%clk 0:00:18]}  Rxg8 {[%clk 0:00:05]} 49. Qxc6 {[%clk 0:00:18]}  Nf2# {[%clk 0:00:05]} 0-1


[Site "https://www.chess.com"]

[Event "Titled Tuesday Blitz October 31 Early 2023"]
[White "Matthes, Aaron"]
[Black "Silvestre, Christian"]
[WhiteFideId "16227310"]
[BlackFideId "30956269"]
[WhiteElo "2301"]
[BlackElo "2097"]
[Result "1-0"]
[Round "6"]
[TimeControl "180+1"]
[Date "2023.10.31"]
[WhiteClock "0:00:23"]
[BlackClock "0:00:08"]
[Board "151"]

1. Nf3 {[%clk 0:03:00]}  g6 {[%clk 0:02:56]} 2. e3 {[%clk 0:03:01]}  Bg7 {[%clk 0:02:56]} 3. d4 {[%clk 0:03:02]}  Nf6 {[%clk 0:02:50]} 4. b4 {[%clk 0:03:02]}  O-O {[%clk 0:02:49]} 5. Bb2 {[%clk 0:03:03]}  b6 {[%clk 0:02:47]} 6. c4 {[%clk 0:03:02]}  Bb7 {[%clk 0:02:47]} 7. Be2 {[%clk 0:03:03]}  e6 {[%clk 0:02:44]} 8. O-O {[%clk 0:03:03]}  d5 {[%clk 0:02:44]} 9. c5 {[%clk 0:03:02]}  bxc5 {[%clk 0:02:41]} 10. bxc5 {[%clk 0:03:00]}  Ba6 {[%clk 0:02:37]} 11. Bxa6 {[%clk 0:02:59]}  Nxa6 {[%clk 0:02:38]} 12. Qa4 {[%clk 0:02:58]}  Nb8 {[%clk 0:02:30]} 13. Ne5 {[%clk 0:02:57]}  Nfd7 {[%clk 0:02:28]} 14. Nxd7 {[%clk 0:02:54]}  Qxd7 {[%clk 0:02:29]} 15. Qxd7 {[%clk 0:02:49]}  Nxd7 {[%clk 0:02:30]} 16. Ba3 {[%clk 0:02:49]}  Nb8 {[%clk 0:02:24]} 17. Nd2 {[%clk 0:02:47]}  Nc6 {[%clk 0:02:24]} 18. f4 {[%clk 0:02:46]}  h5 {[%clk 0:02:20]} 19. Rab1 {[%clk 0:02:44]}  Rfb8 {[%clk 0:02:19]} 20. Nf3 {[%clk 0:02:42]}  Rxb1 {[%clk 0:02:13]} 21. Rxb1 {[%clk 0:02:41]}  Rb8 {[%clk 0:02:14]} 22. Rxb8+ {[%clk 0:02:38]}  Nxb8 {[%clk 0:02:15]} 23. Kf2 {[%clk 0:02:36]}  Kf8 {[%clk 0:02:14]} 24. Ke2 {[%clk 0:02:37]}  Ke7 {[%clk 0:02:13]} 25. Kd3 {[%clk 0:02:34]}  Bf6 {[%clk 0:02:12]} 26. Bb4 {[%clk 0:02:33]}  Kd7 {[%clk 0:02:11]} 27. Be1 {[%clk 0:02:33]}  Nc6 {[%clk 0:02:04]} 28. Kc3 {[%clk 0:02:33]}  Na5 {[%clk 0:01:58]} 29. Bh4 {[%clk 0:02:31]}  Bxh4 {[%clk 0:01:57]} 30. Nxh4 {[%clk 0:02:31]}  Nc4 {[%clk 0:01:57]} 31. Kd3 {[%clk 0:02:26]}  Nb2+ {[%clk 0:01:56]} 32. Ke2 {[%clk 0:02:23]}  Na4 {[%clk 0:01:53]} 33. Kd2 {[%clk 0:02:23]}  Nb2 {[%clk 0:01:52]} 34. Nf3 {[%clk 0:02:21]}  Nc4+ {[%clk 0:01:48]} 35. Kd3 {[%clk 0:02:21]}  Ke7 {[%clk 0:01:43]} 36. Ke2 {[%clk 0:02:11]}  Kd7 {[%clk 0:01:36]} 37. Ne1 {[%clk 0:02:03]}  Kc6 {[%clk 0:01:35]} 38. Nd3 {[%clk 0:02:00]}  Kb5 {[%clk 0:01:34]} 39. Nc1 {[%clk 0:01:49]}  Kb4 {[%clk 0:01:32]} 40. Kd3 {[%clk 0:01:50]}  a5 {[%clk 0:01:25]} 41. Ne2 {[%clk 0:01:45]}  a4 {[%clk 0:01:23]} 42. Nc3 {[%clk 0:01:40]}  c6 {[%clk 0:01:18]} 43. e4 {[%clk 0:01:34]}  dxe4+ {[%clk 0:01:08]} 44. Nxe4 {[%clk 0:01:35]}  Nb2+ {[%clk 0:01:00]} 45. Kc2 {[%clk 0:01:35]}  Nc4 {[%clk 0:01:00]} 46. Nd6 {[%clk 0:01:35]}  Ne3+ {[%clk 0:00:58]} 47. Kd3 {[%clk 0:01:33]}  Nxg2 {[%clk 0:00:57]} 48. Nxf7 {[%clk 0:01:34]}  Nxf4+ {[%clk 0:00:58]} 49. Ke4 {[%clk 0:01:33]}  Nd5 {[%clk 0:00:56]} 50. Nd8 {[%clk 0:01:33]}  Ka3 {[%clk 0:00:51]} 51. Nxc6 {[%clk 0:01:33]}  Kxa2 {[%clk 0:00:51]} 52. Ke5 {[%clk 0:01:33]}  Kb2 {[%clk 0:00:46]} 53. Kxe6 {[%clk 0:01:33]}  a3 {[%clk 0:00:45]} 54. Kxd5 {[%clk 0:01:34]}  a2 {[%clk 0:00:46]} 55. Ne7 {[%clk 0:01:33]}  a1=Q {[%clk 0:00:45]} 56. c6 {[%clk 0:01:34]}  Qa2+ {[%clk 0:00:36]} 57. Kd6 {[%clk 0:01:32]}  Qa3+ {[%clk 0:00:36]} 58. Kd7 {[%clk 0:01:29]}  Qa7+ {[%clk 0:00:34]} 59. c7 {[%clk 0:01:23]}  Qxd4+ {[%clk 0:00:34]} 60. Ke8 {[%clk 0:01:24]}  Qa4+ {[%clk 0:00:32]} 61. Kd8 {[%clk 0:01:15]}  Qd4+ {[%clk 0:00:29]} 62. Ke8 {[%clk 0:01:13]}  Qh8+ {[%clk 0:00:27]} 63. Kd7 {[%clk 0:01:10]}  Qd4+ {[%clk 0:00:27]} 64. Kc6 {[%clk 0:01:02]}  Qe4+ {[%clk 0:00:22]} 65. Kd6 {[%clk 0:01:01]}  Qd3+ {[%clk 0:00:21]} 66. Nd5 {[%clk 0:00:58]}  Qc2 {[%clk 0:00:19]} 67. Kd7 {[%clk 0:00:52]}  Qf5+ {[%clk 0:00:18]} 68. Kd6 {[%clk 0:00:47]}  Qc8 {[%clk 0:00:17]} 69. Ne7 {[%clk 0:00:46]}  Qa6+ {[%clk 0:00:17]} 70. Kd7 {[%clk 0:00:42]}  Qb5+ {[%clk 0:00:18]} 71. Kd8 {[%clk 0:00:40]}  Qd3+ {[%clk 0:00:18]} 72. Ke8 {[%clk 0:00:40]}  Qb5+ {[%clk 0:00:18]} 73. Kf8 {[%clk 0:00:31]}  Qf1+ {[%clk 0:00:16]} 74. Kg7 {[%clk 0:00:25]}  Qc4 {[%clk 0:00:14]} 75. c8=Q {[%clk 0:00:24]}  Qxc8 {[%clk 0:00:13]} 76. Nxc8 {[%clk 0:00:25]}  g5 {[%clk 0:00:14]} 77. Kg6 {[%clk 0:00:23]}  g4 {[%clk 0:00:08]} 78. Kxh5 {[%clk 0:00:23]} 1-0


[Site "https://www.chess.com"]

[Event "Titled Tuesday Blitz October 31 Early 2023"]
[White "Schut, Han"]
[Black "Levine, David"]
[WhiteFideId "1005561"]
[BlackFideId "2011611"]
[WhiteElo "2297"]
[BlackElo "2067"]
[Result "0-1"]
[Round "6"]
[TimeControl "180+1"]
[Date "2023.10.31"]
[WhiteClock "0:00:00"]
[BlackClock "0:00:21"]
[Board "152"]

1. e4 {[%clk 0:02:59]}  e5 {[%clk 0:02:59]} 2. Nf3 {[%clk 0:03:00]}  Nc6 {[%clk 0:02:59]} 3. Bc4 {[%clk 0:03:00]}  Nf6 {[%clk 0:02:59]} 4. d4 {[%clk 0:03:00]}  exd4 {[%clk 0:02:58]} 5. e5 {[%clk 0:03:01]}  d5 {[%clk 0:02:58]} 6. Bb5 {[%clk 0:03:02]}  Ne4 {[%clk 0:02:58]} 7. Nxd4 {[%clk 0:03:02]}  Bc5 {[%clk 0:02:57]} 8. Be3 {[%clk 0:03:02]}  Bd7 {[%clk 0:02:56]} 9. Bxc6 {[%clk 0:03:02]}  bxc6 {[%clk 0:02:55]} 10. O-O {[%clk 0:03:02]}  Bb6 {[%clk 0:02:54]} 11. f3 {[%clk 0:03:03]}  Ng5 {[%clk 0:02:53]} 12. f4 {[%clk 0:03:03]}  Ne4 {[%clk 0:02:51]} 13. Nd2 {[%clk 0:03:04]}  Nxd2 {[%clk 0:02:50]} 14. Qxd2 {[%clk 0:03:04]}  c5 {[%clk 0:02:50]} 15. Nf3 {[%clk 0:03:05]}  d4 {[%clk 0:02:42]} 16. Bf2 {[%clk 0:03:05]}  Bf5 {[%clk 0:02:35]} 17. a4 {[%clk 0:02:53]}  a5 {[%clk 0:02:31]} 18. Nh4 {[%clk 0:02:20]}  Be4 {[%clk 0:02:30]} 19. Rae1 {[%clk 0:02:17]}  Bd5 {[%clk 0:02:29]} 20. b3 {[%clk 0:02:11]}  O-O {[%clk 0:02:01]} 21. f5 {[%clk 0:02:09]}  Re8 {[%clk 0:01:49]} 22. Bg3 {[%clk 0:01:57]}  c4 {[%clk 0:01:43]} 23. f6 {[%clk 0:01:46]}  gxf6 {[%clk 0:01:28]} 24. exf6 {[%clk 0:01:45]}  Rxe1 {[%clk 0:01:22]} 25. Qg5+ {[%clk 0:01:39]}  Kf8 {[%clk 0:01:22]} 26. Rxe1 {[%clk 0:01:32]}  Be6 {[%clk 0:01:20]} 27. Nf5 {[%clk 0:01:07]}  d3+ {[%clk 0:01:18]} 28. Kh1 {[%clk 0:01:06]}  Ke8 {[%clk 0:01:12]} 29. Ng7+ {[%clk 0:00:55]}  Kd7 {[%clk 0:01:11]} 30. Nxe6 {[%clk 0:00:55]}  fxe6 {[%clk 0:01:11]} 31. cxd3 {[%clk 0:00:48]}  cxb3 {[%clk 0:01:10]} 32. Qg7+ {[%clk 0:00:45]}  Kc8 {[%clk 0:01:09]} 33. f7 {[%clk 0:00:36]}  Kb7 {[%clk 0:01:06]} 34. Rxe6 {[%clk 0:00:29]}  Qxd3 {[%clk 0:01:00]} 35. Rxb6+ {[%clk 0:00:29]}  Kxb6 {[%clk 0:00:56]} 36. Bf2+ {[%clk 0:00:24]}  Kb7 {[%clk 0:00:51]} 37. f8=Q {[%clk 0:00:24]}  Qf1+ {[%clk 0:00:44]} 38. Bg1 {[%clk 0:00:24]}  Qxf8 {[%clk 0:00:40]} 39. Qxh7 {[%clk 0:00:13]}  b2 {[%clk 0:00:24]} 40. Qe4+ {[%clk 0:00:00]}  c6 {[%clk 0:00:21]} 0-1


[Site "https://www.chess.com"]

[Event "Titled Tuesday Blitz October 31 Early 2023"]
[White "Lohani, Sujana"]
[Black "Goh, Zi Han"]
[WhiteFideId "12311987"]
[BlackFideId "5819156"]
[WhiteElo "1963"]
[BlackElo "2279"]
[Result "1-0"]
[Round "6"]
[TimeControl "180+1"]
[Date "2023.10.31"]
[WhiteClock "0:00:17"]
[BlackClock "0:00:12"]
[Board "155"]

1. d4 {[%clk 0:03:00]}  d5 {[%clk 0:02:56]} 2. Nf3 {[%clk 0:03:01]}  Nf6 {[%clk 0:02:56]} 3. c4 {[%clk 0:03:02]}  c6 {[%clk 0:02:57]} 4. e3 {[%clk 0:03:02]}  e6 {[%clk 0:02:57]} 5. Nc3 {[%clk 0:03:01]}  Nbd7 {[%clk 0:02:56]} 6. Bd2 {[%clk 0:03:00]}  Bd6 {[%clk 0:02:56]} 7. Bd3 {[%clk 0:02:56]}  O-O {[%clk 0:02:55]} 8. Qc2 {[%clk 0:02:52]}  dxc4 {[%clk 0:02:55]} 9. Bxc4 {[%clk 0:02:52]}  b5 {[%clk 0:02:56]} 10. Bd3 {[%clk 0:02:51]}  Bb7 {[%clk 0:02:56]} 11. e4 {[%clk 0:02:48]}  e5 {[%clk 0:02:52]} 12. dxe5 {[%clk 0:02:04]}  Nxe5 {[%clk 0:02:53]} 13. Nxe5 {[%clk 0:02:03]}  Bxe5 {[%clk 0:02:51]} 14. O-O {[%clk 0:01:59]}  Qb6 {[%clk 0:02:32]} 15. Rad1 {[%clk 0:01:41]}  Rad8 {[%clk 0:02:31]} 16. Be3 {[%clk 0:01:35]}  Bd4 {[%clk 0:02:31]} 17. Bxd4 {[%clk 0:01:35]}  Rxd4 {[%clk 0:02:31]} 18. e5 {[%clk 0:01:27]}  Ng4 {[%clk 0:02:22]} 19. Bxh7+ {[%clk 0:01:20]}  Kh8 {[%clk 0:02:22]} 20. Qf5 {[%clk 0:01:11]}  Nh6 {[%clk 0:02:00]} 21. Qc2 {[%clk 0:00:57]}  Ng4 {[%clk 0:01:42]} 22. Qf5 {[%clk 0:00:41]}  Nh6 {[%clk 0:01:41]} 23. Qc2 {[%clk 0:00:40]}  g6 {[%clk 0:01:41]} 24. Bxg6 {[%clk 0:00:38]}  fxg6 {[%clk 0:01:42]} 25. Qxg6 {[%clk 0:00:38]}  c5 {[%clk 0:01:33]} 26. e6 {[%clk 0:00:34]}  Rh4 {[%clk 0:00:39]} 27. Nd5 {[%clk 0:00:20]}  Bxd5 {[%clk 0:00:34]} 28. Rxd5 {[%clk 0:00:19]}  Qb7 {[%clk 0:00:32]} 29. Rd7 {[%clk 0:00:18]}  Rg4 {[%clk 0:00:12]} 30. Qh7# {[%clk 0:00:17]} 1-0


[Site "https://www.chess.com"]

[Event "Titled Tuesday Blitz October 31 Early 2023"]
[White "Nekoo04"]
[Black "Mirza, Diana"]
[BlackFideId "2503999"]
[WhiteElo "2278"]
[BlackElo "1952"]
[Result "1-0"]
[Round "6"]
[TimeControl "180+1"]
[Date "2023.10.31"]
[WhiteClock "0:00:12"]
[BlackClock "0:00:19"]
[Board "156"]

1. d4 {[%clk 0:00:54]}  Nf6 {[%clk 0:02:55]} 2. Nf3 {[%clk 0:00:54]}  g6 {[%clk 0:02:48]} 3. c4 {[%clk 0:00:54]}  Bg7 {[%clk 0:02:49]} 4. Nc3 {[%clk 0:00:51]}  d6 {[%clk 0:02:50]} 5. e4 {[%clk 0:00:52]}  O-O {[%clk 0:02:50]} 6. Be2 {[%clk 0:00:53]}  e5 {[%clk 0:02:47]} 7. d5 {[%clk 0:00:53]}  Nbd7 {[%clk 0:02:47]} 8. O-O {[%clk 0:00:53]}  Nh5 {[%clk 0:02:42]} 9. g3 {[%clk 0:00:51]}  f5 {[%clk 0:02:40]} 10. exf5 {[%clk 0:00:52]}  gxf5 {[%clk 0:02:28]} 11. Nxe5 {[%clk 0:00:43]}  Nxe5 {[%clk 0:02:26]} 12. Bxh5 {[%clk 0:00:43]}  Nxc4 {[%clk 0:02:26]} 13. Be2 {[%clk 0:00:36]}  Ne5 {[%clk 0:02:23]} 14. h4 {[%clk 0:00:35]}  f4 {[%clk 0:02:19]} 15. Bxf4 {[%clk 0:00:28]}  Rxf4 {[%clk 0:02:13]} 16. gxf4 {[%clk 0:00:29]}  Ng6 {[%clk 0:01:53]} 17. Bg4 {[%clk 0:00:28]}  Qxh4 {[%clk 0:01:46]} 18. Bxc8 {[%clk 0:00:25]}  Rxc8 {[%clk 0:01:44]} 19. Qf3 {[%clk 0:00:26]}  Nxf4 {[%clk 0:01:42]} 20. Rfe1 {[%clk 0:00:24]}  Rf8 {[%clk 0:01:35]} 21. Re4 {[%clk 0:00:08]}  Be5 {[%clk 0:01:05]} 22. Rd1 {[%clk 0:00:04]}  Kh8 {[%clk 0:00:33]} 23. Rde1 {[%clk 0:00:03]}  Rg8+ {[%clk 0:00:32]} 24. Kf1 {[%clk 0:00:02]}  Qh2 {[%clk 0:00:29]} 25. Rxf4 {[%clk 0:00:02]}  Rg1+ {[%clk 0:00:26]} 26. Ke2 {[%clk 0:00:02]}  Bxf4 {[%clk 0:00:20]} 27. Rxg1 {[%clk 0:00:02]}  Qxg1 {[%clk 0:00:17]} 28. Qxf4 {[%clk 0:00:02]}  Qg7 {[%clk 0:00:16]} 29. Kd2 {[%clk 0:00:02]}  h5 {[%clk 0:00:13]} 30. Kc2 {[%clk 0:00:03]}  Qg6+ {[%clk 0:00:13]} 31. Kb3 {[%clk 0:00:02]}  Qd3 {[%clk 0:00:13]} 32. Qf8+ {[%clk 0:00:02]}  Kh7 {[%clk 0:00:13]} 33. Qe7+ {[%clk 0:00:03]}  Kg6 {[%clk 0:00:14]} 34. Qxc7 {[%clk 0:00:04]}  Qxd5+ {[%clk 0:00:14]} 35. Nxd5 {[%clk 0:00:03]}  Kf5 {[%clk 0:00:15]} 36. Qxd6 {[%clk 0:00:04]}  Ke4 {[%clk 0:00:15]} 37. Nc3+ {[%clk 0:00:04]}  Kf3 {[%clk 0:00:16]} 38. Qf6+ {[%clk 0:00:03]}  Kg2 {[%clk 0:00:16]} 39. Qg5+ {[%clk 0:00:04]}  Kxf2 {[%clk 0:00:16]} 40. Qxh5 {[%clk 0:00:05]}  Ke3 {[%clk 0:00:17]} 41. Qf7 {[%clk 0:00:06]}  Kd4 {[%clk 0:00:18]} 42. Qxb7 {[%clk 0:00:06]}  Kc5 {[%clk 0:00:18]} 43. Qxa7+ {[%clk 0:00:07]}  Kd6 {[%clk 0:00:18]} 44. Qb7 {[%clk 0:00:08]}  Kc5 {[%clk 0:00:19]} 45. a4 {[%clk 0:00:08]}  Kd6 {[%clk 0:00:20]} 46. a5 {[%clk 0:00:09]}  Kc5 {[%clk 0:00:20]} 47. a6 {[%clk 0:00:10]}  Kd4 {[%clk 0:00:21]} 48. a7 {[%clk 0:00:11]}  Kc5 {[%clk 0:00:22]} 49. a8=Q {[%clk 0:00:12]}  Kd4 {[%clk 0:00:19]} 50. Qe4+ {[%clk 0:00:12]} 1-0


[Site "https://www.chess.com"]

[Event "Titled Tuesday Blitz October 31 Early 2023"]
[White "Desideri, Ricardo Maruchi"]
[Black "Ng, Gary"]
[WhiteFideId "2110440"]
[BlackFideId "2604914"]
[WhiteElo "1948"]
[BlackElo "2268"]
[Result "0-1"]
[Round "6"]
[TimeControl "180+1"]
[Date "2023.10.31"]
[WhiteClock "0:00:00"]
[BlackClock "0:00:36"]
[Board "157"]

1. e4 {[%clk 0:03:00]}  c5 {[%clk 0:02:59]} 2. Nf3 {[%clk 0:02:58]}  a6 {[%clk 0:03:00]} 3. d4 {[%clk 0:02:55]}  cxd4 {[%clk 0:03:01]} 4. Nxd4 {[%clk 0:02:54]}  Nf6 {[%clk 0:03:01]} 5. Bd3 {[%clk 0:02:50]}  Nc6 {[%clk 0:02:58]} 6. Be3 {[%clk 0:02:47]}  Qb6 {[%clk 0:02:54]} 7. Nb3 {[%clk 0:02:43]}  Qc7 {[%clk 0:02:51]} 8. Nc3 {[%clk 0:02:30]}  e6 {[%clk 0:02:49]} 9. a3 {[%clk 0:02:27]}  Be7 {[%clk 0:02:46]} 10. f4 {[%clk 0:02:25]}  d6 {[%clk 0:02:45]} 11. g4 {[%clk 0:02:22]}  O-O {[%clk 0:02:28]} 12. g5 {[%clk 0:02:17]}  Nd7 {[%clk 0:02:28]} 13. Qe2 {[%clk 0:02:10]}  b5 {[%clk 0:02:26]} 14. O-O-O {[%clk 0:01:59]}  b4 {[%clk 0:02:26]} 15. axb4 {[%clk 0:01:49]}  Nxb4 {[%clk 0:02:27]} 16. Kb1 {[%clk 0:01:47]}  Nc5 {[%clk 0:02:14]} 17. Bc4 {[%clk 0:01:34]}  Bb7 {[%clk 0:02:00]} 18. Nxc5 {[%clk 0:01:28]}  dxc5 {[%clk 0:02:01]} 19. Rhg1 {[%clk 0:01:08]}  Rfd8 {[%clk 0:02:01]} 20. f5 {[%clk 0:01:03]}  Rxd1+ {[%clk 0:01:39]} 21. Qxd1 {[%clk 0:00:58]}  Rd8 {[%clk 0:01:39]} 22. Qe2 {[%clk 0:00:55]}  exf5 {[%clk 0:01:28]} 23. exf5 {[%clk 0:00:47]}  Qe5 {[%clk 0:01:29]} 24. f6 {[%clk 0:00:34]}  Bf8 {[%clk 0:01:25]} 25. fxg7 {[%clk 0:00:21]}  Bxg7 {[%clk 0:01:26]} 26. Bc1 {[%clk 0:00:09]}  Nd5 {[%clk 0:01:15]} 27. Nxd5 {[%clk 0:00:06]}  Bxd5 {[%clk 0:01:10]} 28. Qxe5 {[%clk 0:00:06]}  Bxe5 {[%clk 0:01:09]} 29. Rd1 {[%clk 0:00:06]}  Bd4 {[%clk 0:00:56]} 30. c3 {[%clk 0:00:05]}  Bxc4 {[%clk 0:00:51]} 31. cxd4 {[%clk 0:00:03]}  cxd4 {[%clk 0:00:50]} 32. Be3 {[%clk 0:00:02]}  d3 {[%clk 0:00:42]} 33. Rd2 {[%clk 0:00:00]}  Re8 {[%clk 0:00:36]} 0-1


[Site "https://www.chess.com"]

[Event "Titled Tuesday Blitz October 31 Early 2023"]
[White "ivana_999"]
[Black "Zaichenko, Daria"]
[BlackFideId "4197453"]
[WhiteElo "2029"]
[BlackElo "2248"]
[Result "1-0"]
[Round "6"]
[TimeControl "180+1"]
[Date "2023.10.31"]
[WhiteClock "0:00:13"]
[BlackClock "0:00:22"]
[Board "162"]

1. d4 {[%clk 0:03:00]}  d5 {[%clk 0:02:59]} 2. c4 {[%clk 0:03:01]}  e6 {[%clk 0:02:59]} 3. Nc3 {[%clk 0:03:01]}  Be7 {[%clk 0:02:58]} 4. Nf3 {[%clk 0:03:01]}  Nf6 {[%clk 0:02:55]} 5. Bg5 {[%clk 0:02:59]}  O-O {[%clk 0:02:53]} 6. e3 {[%clk 0:02:59]}  Ne4 {[%clk 0:02:51]} 7. Nxe4 {[%clk 0:02:43]}  dxe4 {[%clk 0:02:49]} 8. Bxe7 {[%clk 0:02:42]}  Qxe7 {[%clk 0:02:47]} 9. Nd2 {[%clk 0:02:43]}  f5 {[%clk 0:02:47]} 10. Be2 {[%clk 0:02:34]}  c5 {[%clk 0:02:40]} 11. d5 {[%clk 0:02:30]}  exd5 {[%clk 0:02:37]} 12. cxd5 {[%clk 0:02:30]}  Nd7 {[%clk 0:02:36]} 13. Qb3 {[%clk 0:02:25]}  Ne5 {[%clk 0:02:33]} 14. Nc4 {[%clk 0:02:09]}  Nxc4 {[%clk 0:02:22]} 15. Bxc4 {[%clk 0:01:56]}  Qd6 {[%clk 0:02:22]} 16. Rd1 {[%clk 0:01:53]}  b6 {[%clk 0:02:21]} 17. Bb5 {[%clk 0:01:48]}  Bb7 {[%clk 0:02:21]} 18. Bc6 {[%clk 0:01:49]}  Ba6 {[%clk 0:02:18]} 19. Bxa8 {[%clk 0:01:46]}  Rxa8 {[%clk 0:02:16]} 20. Qc3 {[%clk 0:01:12]}  Bd3 {[%clk 0:01:54]} 21. Rxd3 {[%clk 0:01:10]}  exd3 {[%clk 0:01:54]} 22. Qxd3 {[%clk 0:01:10]}  Qe5 {[%clk 0:01:45]} 23. O-O {[%clk 0:01:06]}  Rd8 {[%clk 0:01:39]} 24. Rd1 {[%clk 0:01:01]}  g6 {[%clk 0:01:36]} 25. Qc3 {[%clk 0:00:58]}  Qxc3 {[%clk 0:01:29]} 26. bxc3 {[%clk 0:00:58]}  c4 {[%clk 0:01:30]} 27. Kf1 {[%clk 0:00:50]}  Kf7 {[%clk 0:01:29]} 28. a4 {[%clk 0:00:43]}  Re8 {[%clk 0:01:17]} 29. Rd4 {[%clk 0:00:40]}  Rc8 {[%clk 0:01:17]} 30. Ke2 {[%clk 0:00:37]}  Ke7 {[%clk 0:01:17]} 31. d6+ {[%clk 0:00:29]}  Ke6 {[%clk 0:01:14]} 32. f3 {[%clk 0:00:24]}  a6 {[%clk 0:01:11]} 33. e4 {[%clk 0:00:22]}  fxe4 {[%clk 0:01:10]} 34. fxe4 {[%clk 0:00:23]}  b5 {[%clk 0:01:08]} 35. axb5 {[%clk 0:00:21]}  axb5 {[%clk 0:01:08]} 36. Rd5 {[%clk 0:00:21]}  Rd8 {[%clk 0:00:51]} 37. Rxb5 {[%clk 0:00:15]}  Rxd6 {[%clk 0:00:51]} 38. Rc5 {[%clk 0:00:15]}  Ra6 {[%clk 0:00:47]} 39. Rxc4 {[%clk 0:00:15]}  Ra2+ {[%clk 0:00:46]} 40. Kf3 {[%clk 0:00:15]}  Ke5 {[%clk 0:00:42]} 41. Rc5+ {[%clk 0:00:15]}  Kd6 {[%clk 0:00:42]} 42. Rd5+ {[%clk 0:00:15]}  Ke6 {[%clk 0:00:42]} 43. c4 {[%clk 0:00:14]}  Ra3+ {[%clk 0:00:40]} 44. Ke2 {[%clk 0:00:12]}  Ra2+ {[%clk 0:00:40]} 45. Rd2 {[%clk 0:00:13]}  Ra4 {[%clk 0:00:40]} 46. Rc2 {[%clk 0:00:12]}  Ke5 {[%clk 0:00:39]} 47. Kd3 {[%clk 0:00:12]}  Ra3+ {[%clk 0:00:39]} 48. Rc3 {[%clk 0:00:13]}  Ra2 {[%clk 0:00:38]} 49. c5 {[%clk 0:00:14]}  Ra8 {[%clk 0:00:25]} 50. c6 {[%clk 0:00:13]}  Rd8+ {[%clk 0:00:24]} 51. Ke3 {[%clk 0:00:13]}  Rc8 {[%clk 0:00:22]} 52. c7 {[%clk 0:00:13]} 1-0


[Site "https://www.chess.com"]